bitfinex/quotes_ETHUSD_20240703
["timestamp","ask_amount","ask_price","bid_price","bid_amount"]
[1720044962643,3.97512797,3304.9,3304.5,2.494878]
[1720044962812,6.39412882,3304.6,3304.5,0.002278]
[1720044963009,8.07505562,3304.6,3304.5,0.002278]
[1720044963212,6.49285756,3304.6,3304.5,0.002278]
[1720044963814,12.54501756,3304.6,3304.5,0.002278]
[1720044964013,15.76453825,3304.6,3304.5,0.002278]
[1720044964234,15.8349454,3304.6,3304.5,0.002278]
[1720044964760,13.46598482,3304.6,3304.5,0.002278]
[1720044965047,15.83528472,3304.6,3304.5,0.002278]
[1720044968050,14.78691061,3304.6,3304.5,0.002278]
[1720044968353,15.83526441,3304.6,3304.5,0.002278]
[1720044968659,15.83526404,3304.6,3304.5,0.002278]
[1720044969523,18.05226188,3304.6,3304.5,0.002278]
[1720044969825,15.83526404,3304.6,3304.5,0.002278]
[1720044971192,18.05281879,3304.6,3304.5,0.002278]
[1720044971479,16.73189219,3304.6,3304.5,0.002278]
[1720044971681,18.05282155,3304.6,3304.5,0.002278]
[1720044973354,15.83526863,3304.6,3304.5,0.002278]
[1720044974029,16.73526863,3304.6,3304.5,0.002278]
[1720044974236,9.34214008,3304.6,3304.5,0.002278]
[1720044974468,15.63497069,3304.6,3304.5,0.002278]
[1720044976054,12.60908335,3304.6,3304.5,0.002278]
[1720044976258,10.39050207,3304.6,3304.5,0.002278]
[1720044977552,9.34212381,3304.6,3304.5,0.002278]
[1720044977772,10.39047221,3304.6,3304.5,0.002278]
[1720044979861,3.02657,3304.1,3303.7,0.9]
[1720044980060,1.58524664,3303.9,3303.8,0.3154]
[1720044980283,1.58524664,3303.9,3303.8,0.35058422]
[1720044980587,1.58524664,3303.9,3303.8,0.3154]
[1720044980793,1.58546197,3303.9,3303.8,0.3154]
[1720044981296,1.58557043,3303.9,3303.8,0.3154]
[1720044981755,3.02657,3304.1,3303.8,0.3154]
[1720044982111,1.58557001,3303.9,3303.8,0.3154]
[1720044983286,7.95587452,3304.1,3303.8,0.3154]
[1720044983509,4.07500737,3304.0,3303.8,0.9]
[1720044983657,3.02663,3304.0,3303.8,0.9]
[1720044984363,3.02663,3304.0,3303.9,0.03517666]
[1720044984567,4.07498674,3304.0,3303.9,0.03517666]
[1720044984771,4.07498674,3304.0,3303.8,0.9]
[1720044985072,3.02663,3304.0,3303.9,0.03516908]
[1720044985273,4.07498778,3304.0,3303.9,0.03516908]
[1720044985588,4.07498778,3304.0,3303.8,0.9]
[1720044985757,3.0269,3303.7,3302.7,3.192]
[1720044985959,0.95120993,3303.3,3303.1,2.3783]
[1720044986212,1.58534989,3303.6,3303.2,1.48282726]
[1720044986213,1.26827991,3303.4,3303.2,1.48282726]
[1720044986365,1.26827991,3303.4,3303.3,0.9]
[1720044987073,1.26827991,3303.4,3303.3,0.93282726]
[1720044987284,1.26827991,3303.4,3303.3,1.31893999]
[1720044988394,1.26827991,3303.5,3303.3,1.31893999]
[1720044988903,1.26827991,3303.4,3303.3,1.31893999]
[1720044989104,1.26827991,3303.4,3303.3,3.71293999]
[1720044989265,1.26827991,3303.5,3303.3,3.71293999]
[1720044989577,1.26827991,3303.5,3303.4,1.326294]
[1720044989987,1.26827991,3303.5,3303.4,1.35912126]
[1720044990207,3.0269,3303.7,3303.4,1.35912126]
[1720044990366,1.26788208,3303.5,3303.4,1.35912126]
[1720044991899,2.31632749,3303.5,3303.4,1.35912126]
[1720044992314,1.98332749,3303.5,3303.4,1.35912126]
[1720044993389,0.93488208,3303.5,3303.4,1.35912126]
[1720044993593,1.98332679,3303.5,3303.4,1.35912126]
[1720044993978,1.9833267,3303.5,3303.4,0.03282726]
[1720044994334,5.0104167,3303.5,3303.4,0.93282726]
[1720044994635,4.07553462,3303.5,3303.4,0.03282726]
[1720044995780,1.04844462,3303.5,3303.4,0.03282726]
[1720044996588,1.04844857,3303.5,3303.4,0.03282726]
[1720044996891,1.04844861,3303.5,3303.4,0.03282726]
[1720044998203,2.63350695,3303.5,3303.4,0.03282726]
[1720044998391,1.04844861,3303.5,3303.4,0.03282726]
[1720044998596,2.63350695,3303.5,3303.4,0.03282726]
[1720044998829,1.04844861,3303.5,3303.4,0.03282726]
[1720044999134,2.63350695,3303.5,3303.4,0.03282726]
[1720044999836,6.05387,3303.7,3303.4,0.03282726]
[1720044999997,2.63411521,3303.5,3303.4,0.03282726]
[1720045001338,1.04845442,3303.5,3303.4,0.03282726]
[1720045001548,1.04845442,3303.6,3303.4,0.03282726]
[1720045001844,1.04849445,3303.5,3303.4,0.03282726]
[1720045003143,1.90450183,3303.6,3303.4,0.03282726]
[1720045003331,1.04850017,3303.5,3303.4,0.03282726]
[1720045004206,2.36960063,3303.5,3303.4,0.03282726]
[1720045005320,4.27410649,3303.5,3303.4,0.03282726]
[1720045006359,1.32110046,3303.5,3303.4,0.03282726]
[1720045006519,2.95436162,3303.5,3303.4,0.03282726]
[1720045006723,4.27546208,3303.5,3303.4,0.03282726]
[1720045006923,4.27546446,3303.5,3303.4,0.03282726]
[1720045007921,2.36959692,3303.5,3303.4,0.03282726]
[1720045008460,4.27738506,3303.5,3303.4,0.03282726]
[1720045008661,2.36959692,3303.5,3303.4,0.03282726]
[1720045008968,4.27738451,3303.5,3303.4,0.03282726]
[1720045009330,2.36959692,3303.5,3303.4,0.03282726]
[1720045009670,2.36945655,3303.5,3303.4,0.03282726]
[1720045009961,2.36945763,3303.5,3303.4,0.03282726]
[1720045010262,2.36945763,3303.5,3303.4,0.42884499]
[1720045010842,2.36945763,3303.5,3303.4,1.32884499]
[1720045011043,2.36945763,3303.5,3303.4,0.93282726]
[1720045012025,2.36945763,3303.5,3303.4,0.03282726]
[1720045012229,4.61975763,3303.5,3303.4,0.03282726]
[1720045012468,7.64684763,3303.5,3303.1,0.9]
[1720045012665,1.90822327,3303.2,3303.1,0.9]
[1720045012963,7.50365906,3303.5,3303.1,0.9]
[1720045013156,1.90822811,3303.2,3303.1,0.9]
[1720045013353,4.27782967,3303.2,3303.1,0.93295599]
[1720045013650,4.27782967,3303.2,3303.1,0.03295599]
[1720045013651,2.36960156,3303.2,3303.1,0.03295599]
[1720045015975,1.32110516,3303.2,3303.1,0.03295599]
[1720045016180,2.36969366,3303.2,3303.1,0.03295599]
[1720045019061,6.15934217,3303.2,3303.1,0.03295599]
[1720045019370,3.02755,3303.0,3302.7,0.9]
[1720045019578,1.90768432,3302.8,3302.7,0.9]
[1720045019748,4.27735091,3302.8,3302.7,0.9]
[1720045021684,3.22872224,3302.8,3302.7,0.9]
[1720045021872,2.37000437,3302.8,3302.7,0.9]
[1720045024057,2.37000437,3302.8,3302.4,5.30149]
[1720045024257,1.58894481,3302.6,3302.4,5.831639]
[1720045024457,1.58894481,3302.6,3302.5,0.9]
[1720045024707,3.02747,3303.1,3302.5,0.9]
[1720045024989,1.58883415,3302.6,3302.4,5.831639]
[1720045025158,1.58883415,3302.6,3302.5,0.9]
[1720045027040,1.58883415,3302.6,3302.4,0.530149]
[1720045027243,1.58883415,3302.6,3302.5,0.9]
[1720045027848,3.02767,3302.9,3302.5,0.93311126]
[1720045028178,1.588723,3302.6,3302.5,0.03311126]
[1720045028484,1.588723,3302.6,3302.5,0.9]
[1720045028684,1.588723,3302.6,3302.5,0.93311126]
[1720045029756,1.588723,3302.6,3302.5,0.03311126]
[1720045029962,1.9064676,3302.8,3302.5,0.9]
[1720045030175,2.37008518,3302.7,3302.6,0.03322492]
[1720045031197,1.32137113,3302.7,3302.6,0.03322492]
[1720045031361,2.37007837,3302.7,3302.6,0.03322492]
[1720045031562,1.9064311,3302.8,3302.6,0.03322492]
[1720045031786,1.32136288,3302.7,3302.6,0.03322492]
[1720045031970,4.34918288,3302.7,3302.6,0.03322492]
[1720045032178,3.02797,3302.6,3302.3,0.9]
[1720045032502,3.02819,3302.3,3301.4,2.4523]
[1720045032705,0.95325363,3301.7,3301.6,3.02878]
[1720045032995,1.27100485,3301.8,3301.7,2.4523]
[1720045033291,1.27100485,3301.8,3301.7,5.48104]
[1720045033499,0.95297541,3301.8,3301.7,5.48104]
[1720045033677,1.27100485,3301.9,3301.7,6.03104]
[1720045033862,1.27100485,3301.9,3301.8,0.9]
[1720045034404,1.27100485,3301.9,3301.7,2.4523]
[1720045034578,1.27100485,3301.9,3301.8,0.9]
[1720045034765,1.58797163,3301.9,3301.8,0.9]
[1720045035395,1.58797163,3302.0,3301.8,0.9]
[1720045035573,1.58797163,3301.9,3301.8,0.9]
[1720045035774,1.58797163,3302.0,3301.8,0.9]
[1720045036504,1.26976036,3301.9,3301.8,0.9]
[1720045039805,1.26976036,3302.0,3301.8,0.9]
[1720045040808,1.26847323,3302.0,3301.8,0.9]
[1720045041376,0.95158582,3301.9,3301.8,0.9]
[1720045041968,1.26847323,3302.0,3301.8,0.9]
[1720045042511,0.95150995,3301.9,3301.8,0.9]
[1720045042871,0.95150995,3302.0,3301.8,0.9]
[1720045043071,0.95150995,3301.9,3301.8,0.9]
[1720045043820,0.95144347,3301.9,3301.8,0.9]
[1720045044667,0.95144347,3302.0,3301.8,0.9]
[1720045044867,0.95144347,3301.9,3301.8,0.9]
[1720045052406,1.26854339,3301.9,3301.5,5.48115]
[1720045052601,0.9515416,3301.8,3301.5,5.48115]
[1720045052801,0.9515416,3301.8,3301.7,0.9]
[1720045053938,1.26854339,3301.9,3301.7,0.9]
[1720045054097,1.26854339,3301.8,3301.7,0.9]
[1720045054499,1.26901205,3301.8,3301.5,0.9]
[1720045054806,0.95177749,3301.6,3301.5,0.9]
[1720045055425,1.26903665,3301.7,3301.5,0.9]
[1720045055743,0.95185695,3301.6,3301.5,0.9]
[1720045056056,1.26903665,3301.7,3301.5,0.9]
[1720045056752,1.26903665,3301.6,3301.5,0.9]
[1720045057099,1.26938454,3301.6,3301.5,0.9]
[1720045057375,1.26938454,3301.6,3301.2,2.4791]
[1720045057498,1.58673068,3301.7,3301.5,0.9]
[1720045057918,1.58673068,3301.7,3301.6,0.93427818]
[1720045058112,2.6359732,3301.7,3301.6,0.93427818]
[1720045058662,1.84151175,3301.7,3301.6,0.03427818]
[1720045059415,11.12495736,3301.7,3301.6,0.03427818]
[1720045059682,3.02896,3301.5,3300.8,2.3934]
[1720045059955,0.302896,3301.4,3301.2,0.9]
[1720045060175,1.35207998,3301.4,3301.2,0.9]
[1720045060328,1.04918398,3301.3,3301.2,0.9]
[1720045060842,1.04918398,3301.3,3300.7,3.02963]
[1720045061016,1.58717562,3301.2,3301.0,0.9]
[1720045061224,1.58717562,3301.1,3301.0,0.9]
[1720045061555,1.58717562,3301.2,3301.0,0.9343995]
[1720045061929,1.58693781,3301.2,3301.0,0.9]
[1720045062423,1.58693781,3301.2,3300.7,3.02963]
[1720045062627,0.95206898,3300.9,3300.8,0.03479756]
[1720045062834,0.95206898,3300.9,3300.8,0.9]
[1720045063034,0.95206373,3300.9,3300.8,0.93479756]
[1720045066677,0.95206373,3301.1,3300.9,5.42287]
[1720045066835,0.95206373,3301.5,3301.2,3.02913]
[1720045067028,0.95206373,3301.4,3301.3,0.03334381]
[1720045067336,0.95206373,3301.5,3301.4,0.9]
[1720045067541,1.26941831,3301.6,3301.4,0.9]
[1720045067871,0.9515754,3301.5,3301.4,0.9]
[1720045068364,1.26941831,3301.6,3301.4,0.9]
[1720045068538,1.26941831,3301.6,3301.4,3.929]
[1720045068746,0.95170304,3301.5,3301.4,3.929]
[1720045070577,0.61870304,3301.5,3301.4,4.624805]
[1720045071471,1.26941831,3301.6,3301.4,4.624805]
[1720045071626,1.26941831,3301.6,3301.5,0.9]
[1720045072668,3.93664293,3301.7,3301.1,2.3934]
[1720045072966,3.93664293,3301.7,3301.2,0.03334381]
[1720045072967,1.26970948,3301.3,3301.2,0.03334381]
[1720045073169,1.58704293,3301.3,3301.2,0.03334381]
[1720045073326,1.58704293,3301.3,3301.0,0.9]
[1720045073532,1.26992228,3301.1,3301.0,0.9]
[1720045075427,1.58704293,3301.2,3301.0,0.9]
[1720045075626,2.4299,3301.3,3300.8,3.02951]
[1720045075947,1.27024299,3301.0,3300.8,3.02951]
[1720045076158,1.27024299,3301.0,3300.9,0.9]
[1720045078351,1.27024299,3301.0,3300.9,3.3452]
[1720045078662,1.27024299,3301.2,3300.9,6.4075598]
[1720045078866,1.27024299,3301.1,3300.9,5.5075598]
[1720045079069,1.27024299,3301.1,3301.0,0.9]
[1720045079373,1.27024299,3301.1,3301.0,0.93289738]
[1720045079878,1.27024299,3301.1,3301.0,4.60303412]
[1720045080084,0.95290371,3301.3,3301.2,3.0292]
[1720045080289,1.27024299,3301.5,3301.4,3.02901]
[1720045080436,0.95283248,3301.5,3301.4,7.50802]
[1720045080642,0.95283248,3301.5,3301.4,8.50916058]
[1720045080877,0.95283248,3301.5,3301.4,8.54195943]
[1720045081190,1.27024299,3301.7,3301.5,3.02892]
[1720045081489,1.27024299,3301.7,3301.6,3.92883]
[1720045081661,1.27024299,3301.7,3301.6,6.99045885]
[1720045081859,1.27024299,3301.7,3301.6,7.84461879]
[1720045082038,0.9526965,3301.9,3301.6,2.33695879]
[1720045082244,0.9526965,3301.9,3301.8,0.9]
[1720045082768,0.9526965,3301.9,3301.8,0.93279885]
[1720045082954,0.9526965,3301.9,3301.8,6.99009885]
[1720045083155,1.27024299,3302.1,3301.8,6.99009885]
[1720045083156,1.27024299,3302.1,3302.0,6.05692]
[1720045083374,0.95248668,3302.5,3302.2,2.3925]
[1720045083557,1.27024299,3302.6,3302.5,3.028]
[1720045083785,1.27024299,3302.7,3302.6,3.02791]
[1720045083988,1.27024299,3302.7,3302.6,3.92791]
[1720045084188,1.27024299,3302.7,3302.6,3.96070885]
[1720045084525,1.27024299,3302.8,3302.7,3.02782]
[1720045084814,1.27024299,3302.8,3302.7,3.92782]
[1720045085117,1.27024299,3302.9,3302.7,3.96061885]
[1720045085407,1.27024299,3302.9,3302.8,3.92773]
[1720045085911,1.58679863,3303.0,3302.8,3.96052885]
[1720045086114,1.58679863,3303.0,3302.8,0.93279885]
[1720045086115,1.58679863,3302.9,3302.8,0.93279885]
[1720045086472,2.48847849,3303.0,3302.8,0.93279885]
[1720045086830,1.58679863,3303.0,3302.8,0.93279885]
[1720045087176,1.58679863,3303.0,3302.9,0.9]
[1720045088512,1.58679863,3303.1,3302.9,0.9]
[1720045089603,1.26760371,3303.0,3302.9,6.95528]
[1720045089795,1.26760371,3303.1,3302.9,3.92764]
[1720045090122,1.26760371,3303.1,3303.0,3.02755]
[1720045090682,1.26760371,3303.1,3303.0,3.05949647]
[1720045091517,1.58407363,3303.3,3303.1,3.02745]
[1720045091680,1.4253444,3303.2,3303.1,3.02745]
[1720045091880,1.26693704,3303.2,3303.1,3.02745]
[1720045092103,1.26693704,3303.2,3303.1,3.95939647]
[1720045092585,1.26693704,3303.2,3303.1,3.05939647]
[1720045092781,3.86437363,3303.2,3303.1,0.03194647]
[1720045093012,2.66673736,3303.2,3303.1,0.03194647]
[1720045093217,2.66673736,3303.2,3303.1,0.03188967]
[1720045093520,3.02746,3303.1,3302.1,6.05667]
[1720045093827,3.02746,3303.1,3302.4,0.9]
[1720045093828,0.95010259,3302.5,3302.4,0.9]
[1720045094029,0.95013423,3302.5,3302.4,0.9]
[1720045094320,0.95013423,3302.5,3302.4,0.03194647]
[1720045094530,0.9500935,3302.5,3302.4,0.03194647]
[1720045094814,0.9500935,3302.5,3302.3,0.9]
[1720045095049,0.9500935,3302.5,3302.4,0.03194647]
[1720045098791,0.9500935,3302.5,3302.3,0.9]
[1720045101309,0.9500935,3302.5,3302.4,0.03172664]
[1720045102333,0.9500935,3302.5,3302.3,0.9]
[1720045102505,3.2303935,3302.6,3302.3,0.9]
[1720045102705,3.2303935,3302.6,3302.4,0.03115636]
[1720045102910,3.68011198,3302.6,3302.4,0.03115636]
[1720045103697,2.73001848,3302.6,3302.4,0.03115636]
[1720045103929,0.94981502,3302.6,3302.5,0.9]
[1720045104399,0.94981502,3302.7,3302.5,0.93116015]
[1720045104601,0.94981502,3302.8,3302.6,3.02783]
[1720045104834,1.26642003,3302.9,3302.7,0.9]
[1720045104835,0.94981502,3302.9,3302.7,0.9]
[1720045105263,0.94981502,3302.9,3302.7,3.92782]
[1720045105701,0.94981502,3302.9,3302.8,0.03112609]
[1720045106372,0.94981502,3302.9,3302.8,0.9]
[1720045106730,0.94981502,3302.9,3302.8,0.93112609]
[1720045108650,1.04864136,3302.9,3302.8,0.93112609]
[1720045108817,1.99846398,3302.9,3302.8,0.93112609]
[1720045109018,1.04864136,3302.9,3302.8,0.93112609]
[1720045109653,1.04864136,3302.9,3302.8,0.9]
[1720045110059,1.04865907,3302.9,3302.8,0.9]
[1720045110361,2.31507913,3302.9,3302.8,0.9]
[1720045111424,2.31507913,3302.9,3302.5,6.05587]
[1720045111650,0.95025934,3302.7,3302.6,0.03112609]
[1720045111958,1.99891844,3302.7,3302.6,3.95903609]
[1720045113341,0.95025934,3302.7,3302.6,3.95903609]
[1720045113546,1.99893387,3302.7,3302.6,3.95903609]
[1720045115459,1.04867453,3302.7,3302.6,3.95903609]
[1720045116685,1.04867047,3302.7,3302.6,3.95903609]
[1720045118651,2.31629544,3302.7,3302.6,3.95903609]
[1720045118816,1.04867047,3302.7,3302.6,3.95903609]
[1720045119021,2.31629544,3302.7,3302.6,3.95903609]
[1720045119845,1.26762497,3302.7,3302.6,3.95903609]
[1720045120049,2.31631717,3302.7,3302.6,3.95903609]
[1720045120424,1.0486922,3302.7,3302.6,3.95903609]
[1720045121165,2.31727645,3302.7,3302.6,3.95903609]
[1720045121379,1.0486922,3302.7,3302.6,3.95903609]
[1720045121584,2.63438035,3302.7,3302.6,3.95903609]
[1720045121955,0.89164726,3303.0,3302.6,3.95903609]
[1720045122155,1.58632528,3302.7,3302.6,3.95903609]
[1720045122344,2.63500034,3302.7,3302.6,3.95903609]
[1720045123400,2.63568489,3302.7,3302.6,3.95903609]
[1720045123690,1.04867082,3302.7,3302.6,3.95903609]
[1720045124644,2.3700052,3302.7,3302.6,3.95903609]
[1720045125848,4.27816018,3302.7,3302.6,3.95903609]
[1720045126083,4.27816018,3302.7,3302.6,0.93112609]
[1720045126385,3.11346695,3303.0,3302.6,0.93112609]
[1720045126597,1.04868927,3302.7,3302.6,0.93112609]
[1720045127092,4.27823327,3302.7,3302.6,0.93112609]
[1720045128057,2.37003775,3302.7,3302.6,0.93112609]
[1720045129747,2.37003072,3302.7,3302.6,0.93112609]
[1720045132754,0.89164726,3303.0,3302.6,0.93112609]
[1720045132955,4.59706779,3302.9,3302.6,0.93112609]
[1720045133153,2.37002186,3302.8,3302.6,0.93112609]
[1720045133448,0.89164726,3303.0,3302.6,0.93112609]
[1720045133449,4.27541118,3302.7,3302.6,0.93112609]
[1720045134054,2.36658758,3302.7,3302.6,0.93112609]
[1720045135987,0.89164726,3303.0,3302.6,0.93112609]
[1720045136192,3.27584478,3302.9,3302.6,0.93112609]
[1720045136358,1.04867752,3302.8,3302.6,0.93112609]
[1720045136559,1.04867752,3302.7,3302.6,0.93112609]
[1720045139287,1.04867204,3302.7,3302.6,0.93112609]
[1720045141716,0.89164726,3303.0,3302.6,0.93112609]
[1720045141915,1.04867351,3302.7,3302.6,0.93112609]
[1720045142412,1.04867351,3302.7,3302.6,3.95903609]
[1720045143985,1.90968176,3302.9,3302.6,1.46698069]
[1720045144189,1.59134157,3302.9,3302.8,3.3366]
[1720045144416,1.27243543,3303.0,3302.9,6.05528]
[1720045144621,1.27243543,3303.0,3302.9,10.5062358]
[1720045144789,1.27243543,3303.0,3302.9,11.0562358]
[1720045144989,1.90854726,3303.5,3303.3,3.02718]
[1720045145183,12.11973847,3303.8,3303.3,3.02718]
[1720045145184,2.22663847,3303.7,3303.4,3.92718]
[1720045145390,2.4631,3303.8,3303.4,3.92718]
[1720045145593,1.90785373,3303.5,3303.4,3.92718]
[1720045146120,1.90785373,3303.6,3303.4,3.92718]
[1720045147003,1.90785373,3303.6,3303.4,0.9]
[1720045147804,1.90785373,3303.6,3303.5,0.0306418]
[1720045148114,2.95511688,3303.6,3303.5,0.0306418]
[1720045148432,1.90674368,3303.6,3303.5,0.0306418]
[1720045148633,1.90632941,3303.7,3303.5,3.0577318]
[1720045148931,1.90632941,3303.7,3303.6,0.9]
[1720045149302,1.90632941,3303.8,3303.6,0.9306418]
[1720045149500,1.90632941,3303.8,3303.7,0.9]
[1720045150115,9.7119,3304.2,3303.7,0.9]
[1720045150116,1.90632941,3304.0,3303.7,0.9]
[1720045150311,1.90632941,3304.0,3303.9,0.9]
[1720045150636,2.95461343,3304.0,3303.9,0.9]
[1720045150940,2.95461343,3304.0,3303.9,0.93015762]
[1720045151113,2.2819,3304.5,3304.0,3.0266]
[1720045151317,1.90517384,3304.2,3304.1,0.03015762]
[1720045151513,1.90517384,3304.3,3304.1,0.93015762]
[1720045151721,1.90517384,3304.3,3304.2,0.9]
[1720045152754,1.90517384,3304.4,3304.2,0.9]
[1720045153356,1.32072702,3304.3,3304.2,0.9]
[1720045154464,4.18437951,3304.5,3304.2,0.9]
[1720045154668,1.32070026,3304.4,3304.0,3.0266]
[1720045154870,1.26825468,3304.1,3304.0,3.0266]
[1720045155163,1.26825468,3304.2,3304.0,3.95675762]
[1720045155350,0.95090316,3304.1,3304.0,3.05675762]
[1720045155551,0.95090316,3304.1,3304.0,3.95675762]
[1720045157250,0.95090316,3304.2,3304.0,3.95675762]
[1720045157472,0.95090316,3304.2,3304.1,0.9]
[1720045157656,0.95033506,3304.2,3304.1,0.9]
[1720045158049,0.95034152,3304.2,3304.1,0.93015762]
[1720045161383,0.95034152,3304.3,3304.1,0.93015762]
[1720045161576,0.95034152,3304.3,3304.2,0.9]
[1720045161779,0.95034152,3304.3,3304.2,0.92997612]
[1720045161978,1.26712203,3304.4,3304.2,0.92997612]
[1720045162283,0.94956702,3304.3,3304.2,0.92997612]
[1720045164007,0.94956702,3304.3,3304.2,0.02997612]
[1720045164167,1.26712203,3304.4,3304.2,0.9]
[1720045164368,0.94940674,3304.3,3304.2,0.9]
[1720045165996,0.94940674,3304.3,3304.2,0.92997612]
[1720045167279,0.94940674,3304.3,3304.2,0.02997612]
[1720045167280,9.48581548,3304.3,3304.2,0.02997612]
[1720045167483,15.83063412,3304.3,3304.2,0.02997612]
[1720045167702,2.2622,3303.7,3303.3,0.9]
[1720045167900,0.94957237,3303.5,3302.9,3.02764]
[1720045168108,0.94957237,3303.5,3303.4,0.92897087]
[1720045168293,0.94957237,3303.5,3303.4,0.9]
[1720045169278,4.2930965,3303.6,3303.4,0.9]
[1720045169478,5.40957621,3303.6,3303.4,0.9]
[1720045169895,1.2660965,3303.5,3303.4,0.9]
[1720045170326,4.2931865,3303.5,3302.7,2.2575]
[1720045170613,0.94983186,3303.2,3303.0,0.9]
[1720045171412,1.2660965,3303.2,3303.1,0.02897087]
[1720045171621,1.2660965,3303.3,3303.1,0.9]
[1720045171807,1.2660965,3303.3,3303.1,0.92897087]
[1720045172213,0.94995396,3303.2,3303.1,0.92897087]
[1720045172422,1.2660965,3303.3,3303.1,0.02897087]
[1720045172605,1.85374132,3303.3,3302.4,8.41128]
[1720045172786,3.0277,3302.9,3301.8,2.3974]
[1720045173107,0.95024438,3302.9,3302.8,0.9]
[1720045173308,0.95024438,3303.1,3302.8,0.9]
[1720045173513,0.95024438,3303.2,3303.0,0.9]
[1720045173820,1.2660965,3303.4,3302.5,5.43835]
[1720045173821,0.95024438,3303.3,3302.5,2.4104]
[1720045174019,0.95024438,3302.8,3302.2,2.4104]
[1720045174193,4.2937165,3303.0,3302.7,0.9]
[1720045174194,0.95024438,3302.9,3302.7,0.9]
[1720045174394,0.95024438,3303.1,3302.8,0.9]
[1720045174582,0.95024438,3303.1,3302.7,3.02782]
[1720045174780,0.95024438,3303.2,3302.3,3.02813]
[1720045175021,3.97795438,3302.9,3302.0,3.02846]
[1720045175223,0.95024438,3302.8,3302.4,0.9]
[1720045175606,0.95024438,3302.8,3302.6,0.9]
[1720045176488,3.97798438,3302.8,3301.9,3.02847]
[1720045176687,3.97798438,3302.8,3302.2,0.9]
[1720045176688,0.95024438,3302.5,3302.2,0.9]
[1720045176884,0.95024438,3302.5,3301.8,2.4104]
[1720045177101,0.95024438,3302.4,3302.1,0.9]
[1720045177868,0.95024438,3302.4,3302.2,0.02683156]
[1720045177869,0.95024438,3302.3,3302.2,0.02683156]
[1720045178027,0.95024438,3302.3,3301.3,3.02906]
[1720045178028,0.39783144,3302.3,3301.6,0.9]
[1720045178191,0.95046608,3302.1,3301.8,0.9]
[1720045178390,0.95046608,3302.0,3301.8,0.9]
[1720045178622,0.95046608,3302.1,3301.8,0.9]
[1720045178803,0.95046608,3302.1,3301.9,0.02685424]
[1720045179425,0.95046608,3302.1,3301.9,0.9]
[1720045179589,1.51485864,3302.1,3301.3,3.02905]
[1720045179787,0.95046608,3302.0,3301.7,0.9]
[1720045180737,0.95046608,3301.8,3301.4,0.9]
[1720045181131,0.95046608,3301.7,3301.5,0.02685424]
[1720045181292,0.95046608,3301.8,3301.5,0.02685424]
[1720045181695,2.88835267,3301.9,3301.5,0.02685424]
[1720045181696,0.95046608,3301.7,3301.5,0.02685424]
[1720045181901,0.95046608,3301.8,3301.5,0.92685424]
[1720045182137,0.61746608,3301.9,3301.7,0.9]
[1720045182444,3.02849,3302.0,3301.8,0.02685424]
[1720045182817,7.43,3302.2,3301.4,2.4493]
[1720045183015,7.43,3302.2,3302.1,0.9]
[1720045183214,1.26566123,3302.3,3301.5,0.02685424]
[1720045183417,10.6373,3302.6,3301.5,0.9]
[1720045183418,3.56766123,3302.2,3301.5,0.9]
[1720045183655,3.02846,3302.0,3301.5,0.9]
[1720045184154,0.73225412,3301.9,3301.1,3.02922]
[1720045184297,3.02846,3302.0,3301.6,0.02685424]
[1720045184500,3.02846,3302.0,3301.1,3.02922]
[1720045185007,3.02846,3302.0,3301.2,0.02685424]
[1720045185622,3.02842,3302.1,3301.2,3.05604424]
[1720045185920,7.43,3302.2,3301.5,3.02891]
[1720045186122,8.69566123,3302.5,3301.7,3.02867]
[1720045186438,10.45802,3302.5,3301.8,0.02734968]
[1720045186640,4.29368123,3302.5,3301.8,0.02734968]
[1720045186841,4.29368123,3302.5,3301.7,3.02867]
[1720045187159,4.29368123,3302.5,3301.9,0.02734968]
[1720045187357,3.02802,3302.5,3301.7,3.02867]
[1720045187519,3.02802,3302.5,3302.0,0.02734968]
[1720045187721,3.02802,3302.5,3301.7,3.02867]
[1720045188046,3.02802,3302.5,3301.7,1.1393651]
[1720045188047,3.02813,3302.4,3301.7,1.1393651]
[1720045188245,3.02813,3302.4,3301.8,0.02734968]
[1720045188658,3.02813,3302.4,3301.6,2.626091]
[1720045188950,3.0283,3302.2,3301.9,0.02734968]
[1720045189106,5.3861,3302.2,3301.3,5.18903]
[1720045189305,5.3861,3302.2,3301.2,2.4736]
[1720045189306,6.05674,3302.1,3302.0,0.02734968]
[1720045189533,0.841454,3302.1,3301.2,2.4736]
[1720045189841,3.02849,3302.0,3301.3,0.02734968]
[1720045190141,4.29379123,3302.4,3301.3,5.21639968]
[1720045190309,6.05631,3302.4,3301.5,3.02887]
[1720045190505,3.0282,3302.3,3301.5,3.02887]
[1720045190717,2.3578,3302.5,3301.2,2.4736]
[1720045190929,3.02856,3301.9,3301.6,0.02734968]
[1720045191241,3.02856,3301.9,3301.7,0.02734968]
[1720045191607,3.02856,3301.9,3301.2,2.4736]
[1720045191839,3.02856,3301.9,3301.8,0.02734968]
[1720045192144,3.02856,3301.9,3301.2,2.4736]
[1720045192145,3.331416,3301.9,3301.2,2.4736]
[1720045192335,3.02856,3301.9,3301.2,2.4736]
[1720045192505,3.02841,3302.1,3301.3,0.02734968]
[1720045192702,0.94749307,3302.3,3301.4,3.02893]
[1720045192901,3.02819,3302.3,3301.6,2.16]
[1720045193321,3.02819,3302.3,3301.7,0.02734968]
[1720045194851,3.02819,3302.3,3301.5,3.0289]
[1720045195053,3.02819,3302.3,3301.8,0.02734968]
[1720045195234,3.02819,3302.3,3301.5,3.0289]
[1720045195235,3.96435331,3302.3,3301.5,3.0289]
[1720045195431,3.96435331,3302.3,3301.9,0.02734968]
[1720045195432,3.02819,3302.3,3301.9,0.02734968]
[1720045195635,3.02819,3302.3,3301.5,3.0289]
[1720045195817,3.02819,3302.3,3302.0,0.02734968]
[1720045196011,3.02819,3302.3,3301.5,3.0289]
[1720045196356,3.02819,3302.3,3302.1,0.02734968]
[1720045196523,0.605634,3302.2,3301.5,3.0289]
[1720045196746,3.02819,3302.3,3301.6,0.02734968]
[1720045198067,3.02828,3302.2,3301.6,0.02734968]
[1720045198373,3.02846,3302.0,3301.6,0.02734968]
[1720045198571,3.02828,3302.2,3301.3,3.02908]
[1720045198865,3.02828,3302.2,3301.4,0.02766355]
[1720045199371,4.07734919,3302.1,3301.4,0.02766355]